bitfinex/quotes_SOLUSD_20240726
["timestamp","ask_amount","ask_price","bid_price","bid_amount"]
[1722032893490,45.0,183.28,183.22,12.9]
[1722032894585,15.942008,183.31,183.24,12.9]
[1722032894779,20.0,183.3,183.25,12.9]
[1722032901080,20.0,183.3,183.15,3.3319521]
[1722032901281,20.0,183.3,183.23,12.9]
[1722032902095,28.842008,183.31,183.23,12.9]
[1722032905697,15.942008,183.31,183.25,12.9]
[1722032907796,0.531808,183.31,183.27,12.9]
[1722032909208,0.531808,183.31,183.28,12.9]
[1722032910815,0.531808,183.31,183.27,12.9]
[1722032915410,13.431808,183.31,183.2,18.74204369]
[1722032915733,13.431808,183.31,183.24,12.9]
[1722032917027,13.431808,183.31,183.2,17.65087714]
[1722032917222,13.54960814,183.3,183.2,17.65087714]
[1722032917424,0.64960814,183.29,183.23,12.9]
[1722032919830,0.64960814,183.29,183.24,12.9]
[1722032920832,0.531808,183.31,183.25,13.99128388]
[1722032921015,0.531808,183.31,183.26,13.99119788]
[1722032921210,0.531808,183.31,183.27,1.09117164]
[1722032921419,0.531808,183.31,183.26,12.9]
[1722032922027,0.531808,183.31,183.25,12.9]
[1722032923113,0.531808,183.31,183.2,17.65087714]
[1722032923312,0.531808,183.31,183.25,12.9]
[1722032923935,0.531808,183.31,183.24,12.9]
[1722032924112,0.531808,183.31,183.25,12.9]
[1722032925622,1.18141614,183.31,183.25,12.9]
[1722032925957,1.18141614,183.31,183.2,17.65087714]
[1722032925958,14.08141614,183.31,183.23,12.9]
[1722032926131,13.431808,183.31,183.23,12.9]
[1722032926936,0.64960814,183.3,183.23,12.9]
[1722032927735,13.431808,183.31,183.23,12.9]
[1722032927931,13.54960814,183.3,183.22,12.9]
[1722032928143,45.64960814,183.29,183.22,12.9]
[1722032928316,12.9,183.3,183.23,12.9]
[1722032928518,45.0,183.29,183.22,12.9]
[1722032929140,58.54960814,183.29,183.22,12.9]
[1722032929446,45.64960814,183.29,183.22,12.9]
[1722032929841,12.9,183.26,183.16,28.32579643]
[1722032930036,61.41250814,183.29,183.18,12.9]
[1722032930037,13.54960814,183.25,183.18,12.9]
[1722032930236,0.64960814,183.24,183.18,12.9]
[1722032930747,0.64960814,183.24,183.19,12.9]
[1722032930958,12.9,183.26,183.19,12.9]
[1722032931253,0.64960814,183.25,183.19,12.9]
[1722032931748,12.9,183.26,183.19,12.9]
[1722032932043,0.64960814,183.25,183.19,12.9]
[1722032932245,0.64960814,183.25,183.15,2.19040583]
[1722032932547,12.9,183.24,183.17,12.9]
[1722032933119,12.9,183.25,183.18,12.9]
[1722032933326,45.0,183.24,183.18,12.9]
[1722032934661,12.9,183.27,183.2,12.9]
[1722032934951,45.0,183.26,183.2,12.9]
[1722032937731,0.64960814,183.25,183.19,12.9]
[1722032939534,0.64960814,183.25,183.12,25.81633574]
[1722032939736,0.64960814,183.25,183.19,12.9]
[1722032939927,57.9,183.26,183.12,25.81633574]
[1722032940135,57.9,183.26,183.19,12.9]
[1722032941159,58.54960814,183.26,183.19,12.9]
[1722032942860,12.9,183.25,183.18,12.9]
[1722032943154,45.0,183.24,183.18,12.9]
[1722032945455,0.64960814,183.23,183.12,25.81633574]
[1722032945656,13.54960814,183.23,183.16,12.9]
[1722032945861,29.04570814,183.23,183.16,12.9]
[1722032946544,57.9,183.22,183.15,12.9]
[1722032946854,0.64960814,183.21,183.15,12.9]
[1722032947061,0.64960814,183.21,183.16,12.9]
[1722032947253,15.4961,183.23,183.18,12.9]
[1722032950735,15.4961,183.23,183.12,25.81633574]
[1722032950736,16.14570814,183.23,183.12,25.81633574]
[1722032950942,16.14570814,183.23,183.17,12.9]
[1722032951463,15.4961,183.23,183.17,12.9]
[1722032951968,0.64960814,183.22,183.12,25.81633574]
[1722032952141,0.64960814,183.22,183.16,12.9]
[1722032953371,0.64960814,183.21,183.15,12.9]
[1722032953574,0.64960814,183.2,183.15,12.9]
[1722032953867,0.64960814,183.2,183.12,7.24676866]
[1722032954056,58.54960814,183.2,183.13,12.9]
[1722032954253,13.54960814,183.2,183.13,12.9]
[1722032954454,13.54960814,183.2,183.09,5.37837539]
[1722032954455,45.0,183.19,183.09,5.37837539]
[1722032954763,0.64960814,183.18,183.11,12.9]
[1722032954948,16.37660814,183.17,183.11,12.9]
[1722032955352,16.37660814,183.17,183.07,23.64786866]
[1722032955562,29.27660814,183.17,183.07,7.24676866]
[1722032955762,45.0,183.16,183.1,12.9]
[1722032957364,15.727,183.17,183.13,12.9]
[1722032957965,15.727,183.17,183.14,12.9]
[1722032958172,15.727,183.17,183.13,12.9]
[1722032959074,15.727,183.17,183.07,7.24676866]
[1722032959075,13.54960814,183.16,183.09,12.9]
[1722032959375,12.9,183.15,183.08,12.9]
[1722032959548,45.64960814,183.14,183.08,12.9]
[1722032960248,0.64960814,183.14,183.08,12.9]
[1722032961963,0.64960814,183.14,183.02,18.64531999]
[1722032962168,0.64960814,183.14,183.08,12.9]
[1722032962875,0.64960814,183.14,183.09,12.9]
[1722032963755,45.0,183.15,183.02,18.64531999]
[1722032964064,45.0,183.15,183.1,12.9]
[1722032964271,45.64960814,183.16,183.1,12.9]
[1722032964870,45.0,183.16,183.1,12.9]
[1722032966279,45.0,183.16,183.02,19.73763881]
[1722032966455,0.64960814,183.15,183.02,19.73763881]
[1722032966776,0.64960814,183.15,183.1,12.9]
[1722032966974,0.64960814,183.15,183.09,12.9]
[1722032969677,0.64960814,183.15,183.1,12.9]
[1722032969878,0.64960814,183.14,183.1,12.9]
[1722032970272,45.0,183.16,183.1,12.9]
[1722032971003,0.64960814,183.15,183.1,12.9]
[1722032971661,0.64960814,183.14,183.1,12.9]
[1722032971855,45.0,183.16,183.1,12.9]
[1722032972056,0.64960814,183.15,183.02,18.64531999]
[1722032972371,0.64960814,183.14,183.09,12.9]
[1722032973279,58.54960814,183.16,183.09,12.9]
[1722032973785,57.9,183.16,183.09,12.9]
[1722032974152,57.9,183.16,183.1,12.9]
[1722032974357,15.727,183.17,183.13,12.9]
[1722032974571,15.727,183.17,183.06,51.6]
[1722032974572,15.727,183.17,183.14,12.9]
[1722032974785,16.3616,183.21,183.15,12.9]
[1722032975170,0.64960814,183.2,183.16,12.9]
[1722032975774,16.3616,183.21,183.16,12.9]
[1722032976788,45.0,183.2,183.16,12.9]
[1722032978506,45.0,183.2,183.15,12.9]
[1722032978995,45.0,183.2,183.16,12.9]
[1722032983090,45.0,183.2,183.17,12.9]
[1722032984684,45.0,183.2,183.16,12.9]
[1722032986500,15.2427,183.26,183.19,12.9]
[1722032986674,20.0,183.25,183.19,12.9]
[1722032987076,0.64960814,183.24,183.19,12.9]
[1722032987281,0.64960814,183.23,183.19,12.9]
[1722032987579,0.64960814,183.23,183.18,12.9]
[1722032988002,45.0,183.24,183.18,12.9]
[1722032988297,0.64960814,183.23,183.18,12.9]
[1722032989696,45.64960814,183.24,183.18,12.9]
[1722032989903,13.54960814,183.23,183.16,12.9]
[1722032990109,45.0,183.22,183.16,12.9]
[1722032990314,0.64960814,183.21,183.16,12.9]
[1722032990885,45.0,183.22,183.09,6.0343]
[1722032990886,0.64960814,183.2,183.15,12.9]
[1722032991087,0.64960814,183.2,183.14,12.9]
[1722032991398,45.64960814,183.2,183.14,12.9]
[1722032991604,58.54960814,183.2,183.09,6.0343]
[1722032991785,58.54960814,183.2,183.12,12.9]
[1722032992110,12.9,183.19,183.12,12.9]
[1722032992409,0.64960814,183.18,183.13,12.9]
[1722032993103,45.0,183.2,183.14,12.9]
[1722032993609,45.0,183.2,183.15,12.9]
[1722032993817,45.64960814,183.2,183.16,12.9]
[1722032994103,45.0,183.2,183.16,12.9]
[1722032994299,45.64960814,183.2,183.16,12.9]
[1722032994501,45.64960814,183.2,183.15,12.9]
[1722032994686,45.64960814,183.2,183.09,6.0343]
[1722032994886,45.0,183.2,183.15,12.9]
[1722032995096,13.54960814,183.24,183.17,12.9]
[1722032995292,20.64960814,183.23,183.17,12.9]
[1722032996013,20.64960814,183.23,183.16,12.9]
[1722032996310,45.0,183.22,183.15,12.9]
[1722032996606,0.64960814,183.21,183.15,12.9]
[1722032996812,45.0,183.22,183.15,12.9]
[1722032996813,0.64960814,183.2,183.15,12.9]
[1722032997687,12.9,183.21,183.14,12.9]
[1722032997888,45.0,183.2,183.14,12.9]
[1722032998106,45.0,183.2,183.15,12.9]
[1722032998299,45.0,183.21,183.15,12.9]
[1722033000917,45.0,183.21,183.09,6.0343]
[1722033001094,57.9,183.21,183.13,12.9]
[1722033001605,13.54960814,183.2,183.12,12.9]
[1722033001914,45.0,183.19,183.12,12.9]
[1722033002116,0.64960814,183.18,183.12,12.9]
[1722033002314,0.64960814,183.17,183.12,12.9]
[1722033002686,0.64960814,183.17,183.08,16.1982]
[1722033002890,0.64960814,183.17,183.1,12.9]
[1722033002891,45.0,183.17,183.1,12.9]
[1722033004114,45.0,183.17,183.11,12.9]
[1722033004410,58.54960814,183.18,183.1,12.9]
[1722033004615,0.64960814,183.17,183.1,12.9]
[1722033004810,0.64960814,183.16,183.11,12.9]
[1722033005209,0.64960814,183.16,183.1,12.9]
[1722033009010,0.64960814,183.16,183.12,12.9]
[1722033009222,0.64960814,183.16,183.13,12.9]
[1722033009521,0.64960814,183.18,183.13,12.9]
[1722033009724,0.64960814,183.17,183.13,12.9]
[1722033009896,0.64960814,183.17,183.12,12.9]
[1722033010895,0.64960814,183.17,183.11,12.9]
[1722033012696,6.1838,183.19,183.14,12.9]
[1722033013003,6.1838,183.19,183.08,16.1982]
[1722033013004,16.4344,183.2,183.15,12.9]
[1722033013220,16.4344,183.2,183.14,12.9]
[1722033014004,45.0,183.19,183.14,12.9]
[1722033016421,45.0,183.19,183.08,16.1982]
[1722033016725,45.0,183.19,183.14,12.9]
[1722033019309,0.64960814,183.18,183.08,16.1982]
[1722033019512,0.64960814,183.17,183.12,12.9]
[1722033019707,0.64960814,183.17,183.08,16.1982]
[1722033019908,45.64960814,183.17,183.11,12.9]
[1722033020799,45.64960814,183.17,183.08,16.1982]
[1722033021000,12.9,183.14,183.06,12.9]
[1722033021199,12.9,183.14,183.03,22.66354644]
[1722033021200,61.5299,183.13,183.07,12.9]
[1722033021419,61.5299,183.13,183.03,22.66354644]
[1722033021622,61.5299,183.13,183.08,12.9]
[1722033021826,61.5299,183.13,183.07,12.9]
[1722033022029,0.64960814,183.12,183.07,12.9]
[1722033023122,61.5299,183.13,183.07,12.9]
[1722033025322,61.5299,183.13,183.0,6.4223]
[1722033025514,61.5299,183.13,183.07,12.9]
[1722033028314,61.5299,183.13,182.99,11.88747835]
[1722033028315,45.0,183.13,182.99,11.88747835]
[1722033028631,45.0,183.13,182.94,12.9]
[1722033028632,5.4642,183.01,182.94,12.9]
[1722033028834,65.64960814,183.0,182.93,12.9]
[1722033029015,65.64960814,183.0,182.88,58.0223]
[1722033029213,65.64960814,183.0,182.96,12.9]
[1722033029526,65.0,183.0,182.96,12.9]
[1722033031832,23.1698,183.03,182.98,12.9]
[1722033032016,6.6399,183.07,183.01,12.9]
[1722033032221,0.64960814,183.06,183.02,12.9]
[1722033032423,6.6399,183.07,183.02,12.9]
[1722033033115,16.5299,183.12,183.06,12.9]
[1722033033330,16.5299,183.12,183.07,12.9]
[1722033033648,16.5299,183.12,183.08,12.9]
[1722033034712,45.0,183.11,183.08,12.9]
[1722033034938,16.5299,183.12,183.07,12.9]
[1722033035241,16.5299,183.12,182.97,58.0223]
[1722033035242,12.9,183.11,182.97,59.11479741]
[1722033035535,0.64960814,183.1,183.04,12.9]
[1722033035744,0.64960814,183.11,183.06,12.9]
[1722033035911,0.64960814,183.12,183.09,12.9]
[1722033036113,0.64960814,183.12,183.08,12.9]
[1722033036314,0.64960814,183.15,183.08,12.9]
[1722033036727,0.64960814,183.14,183.08,12.9]
[1722033036940,0.64960814,183.13,183.1,12.9]
[1722033037931,0.64960814,183.15,183.1,12.9]
[1722033038127,0.64960814,183.14,183.1,12.9]
[1722033038738,45.0,183.15,183.1,12.9]
[1722033041535,19.4591,183.18,183.11,12.9]
[1722033041743,17.00510814,183.2,183.14,12.9]
[1722033042037,16.3555,183.2,183.15,12.9]
[1722033042534,17.00510814,183.2,183.15,12.9]
[1722033042743,16.3555,183.2,183.15,12.9]
[1722033043241,45.0,183.19,183.15,12.9]
[1722033043436,13.54960814,183.22,183.15,12.9]
[1722033043437,0.64960814,183.22,183.15,12.9]
[1722033044624,20.64960814,183.22,183.16,12.9]
[1722033044825,45.0,183.21,183.15,12.9]
[1722033047736,57.9,183.21,183.14,12.9]
[1722033049129,0.64960814,183.2,183.15,12.9]
[1722033051944,12.9,183.19,183.06,6.1538]
[1722033052125,45.64960814,183.18,183.11,12.9]
[1722033052323,0.64960814,183.17,183.11,12.9]
[1722033052939,0.64960814,183.17,183.12,12.9]
[1722033053423,0.64960814,183.17,183.13,12.9]
[1722033053828,0.64960814,183.17,183.06,57.7538]
[1722033053829,0.64960814,183.17,183.12,12.9]
[1722033054026,0.64960814,183.17,183.11,12.9]
[1722033058455,45.0,183.18,183.12,12.9]
[1722033059157,0.64960814,183.17,183.12,12.9]
[1722033060322,45.0,183.18,183.12,12.9]
[1722033060542,0.64960814,183.18,183.14,12.9]
[1722033061733,0.64960814,183.2,183.14,12.9]
[1722033062051,45.64960814,183.2,183.14,12.9]
[1722033064151,45.64960814,183.2,183.06,6.1538]
[1722033064332,12.9,183.17,183.06,6.1538]
[1722033064533,45.64960814,183.16,183.09,12.9]
[1722033065760,45.64960814,183.16,183.1,12.9]
[1722033066953,45.64960814,183.16,183.09,12.9]
[1722033067542,45.64960814,183.16,183.1,12.9]
[1722033068531,45.64960814,183.16,183.11,12.9]
[1722033068839,45.64960814,183.15,183.12,12.9]
[1722033069054,0.64960814,183.15,183.12,12.9]
[1722033069361,0.64960814,183.14,183.12,12.9]
[1722033069759,0.64960814,183.14,183.11,12.9]
[1722033070264,0.64960814,183.16,183.11,12.9]
[1722033071751,0.64960814,183.16,183.13,12.9]
[1722033074051,0.64960814,183.17,183.14,12.9]
[1722033074362,0.64960814,183.2,183.06,57.7538]
[1722033074564,45.64960814,183.2,183.14,12.9]
[1722033074860,20.0,183.19,183.14,12.9]
[1722033075071,0.64960814,183.18,183.14,12.9]
[1722033075366,0.64960814,183.25,183.17,12.9]
[1722033075568,15.1337,183.26,183.19,12.9]
[1722033075857,0.64960814,183.23,183.19,12.9]
[1722033076741,45.64960814,183.23,183.19,12.9]
[1722033077142,45.64960814,183.23,183.17,12.9]
[1722033078153,45.64960814,183.23,183.12,15.5126]
[1722033078154,58.54960814,183.23,183.12,15.5126]
[1722033078351,58.54960814,183.23,183.16,12.9]
[1722033079677,12.9,183.2,183.06,21.6664]
[1722033079852,12.9,183.18,183.11,12.9]
[1722033080177,0.64960814,183.17,183.11,12.9]
[1722033080357,0.64960814,183.17,183.12,12.9]
[1722033080557,45.64960814,183.17,183.12,12.9]
[1722033081143,0.64960814,183.17,183.12,12.9]
[1722033087979,57.9,183.18,183.11,12.9]
[1722033088557,45.0,183.18,183.12,12.9]
[1722033089873,45.0,183.18,183.13,12.9]
[1722033091052,45.0,183.18,183.14,12.9]
[1722033093258,13.54960814,183.21,183.14,12.9]
[1722033093472,20.64960814,183.2,183.14,12.9]
[1722033093676,45.0,183.19,183.14,12.9]
[1722033094184,0.64960814,183.18,183.14,12.9]
[1722033098087,0.64960814,183.18,183.13,12.9]
[1722033098461,45.0,183.19,183.06,73.2664]
[1722033098462,0.64960814,183.17,183.12,12.9]
[1722033100873,0.64960814,183.17,183.13,12.9]
[1722033102383,0.64960814,183.17,183.06,73.2664]
[1722033102566,0.64960814,183.17,183.12,12.9]
[1722033104063,0.64960814,183.17,183.06,75.49159336]
[1722033104263,13.54960814,183.17,183.06,21.6664]
[1722033104463,45.0,183.16,183.09,12.9]
[1722033104658,0.64960814,183.15,183.09,12.9]
[1722033104887,0.64960814,183.14,183.09,12.9]
[1722033106092,0.64960814,183.14,183.1,12.9]
[1722033108988,0.64960814,183.14,183.09,12.9]
[1722033109189,0.64960814,183.14,183.07,12.9]
[1722033109373,12.9,183.13,183.01,21.6022]
[1722033109572,45.64960814,183.12,183.06,12.9]
[1722033111872,12.9,183.11,183.01,21.6022]
[1722033112071,0.64960814,183.1,183.03,12.9]
[1722033112385,45.64960814,183.1,183.03,12.9]
[1722033113767,45.64960814,183.1,183.04,12.9]
[1722033116597,45.64960814,183.1,183.03,12.9]
[1722033121400,45.64960814,183.1,183.04,12.9]
[1722033121695,45.0,183.1,183.04,12.9]
[1722033121902,45.0,183.1,183.05,12.9]
[1722033122077,45.64960814,183.11,183.05,12.9]
[1722033122870,45.0,183.11,183.05,12.9]
[1722033124501,45.0,183.11,183.04,12.9]
[1722033126799,35.46340814,183.12,183.07,12.9]
[1722033126800,17.10250814,183.12,183.07,12.9]
[1722033126982,20.0,183.11,183.07,12.9]
[1722033127184,0.64960814,183.1,183.07,12.9]
[1722033127394,0.64960814,183.1,183.05,12.9]
[1722033128400,65.0,183.11,183.05,12.9]
[1722033128622,45.0,183.1,183.06,12.9]
[1722033128800,20.0,183.11,183.06,12.9]
[1722033129996,20.64960814,183.11,183.05,12.9]
[1722033130201,0.64960814,183.1,183.05,12.9]
[1722033130702,20.0,183.11,183.05,12.9]
[1722033131598,0.64960814,183.1,183.05,12.9]
[1722033136622,20.0,183.11,183.05,12.9]
[1722033137317,0.64960814,183.1,183.05,12.9]
[1722033138705,0.64960814,183.09,183.01,15.3901]
[1722033138910,0.64960814,183.09,183.03,12.9]
[1722033139318,0.64960814,183.09,182.98,2.22260792]
[1722033139509,12.9,183.08,183.0,12.9]
[1722033139711,45.64960814,183.07,183.0,12.9]
[1722033141412,45.64960814,183.07,182.97,6.2121]
[1722033141618,45.64960814,183.07,183.0,12.9]
[1722033143140,45.64960814,183.07,183.01,12.9]
[1722033143312,0.64960814,183.07,183.01,12.9]
[1722033144723,45.64960814,183.08,183.01,12.9]
[1722033144925,45.64960814,183.08,182.97,6.2121]
[1722033144926,0.64960814,183.06,183.0,12.9]
[1722033145121,45.0,183.06,183.01,12.9]
[1722033145542,45.0,183.07,183.01,12.9]
[1722033146232,0.64960814,183.06,183.01,12.9]
[1722033146924,45.0,183.07,183.01,12.9]
[1722033147649,0.64960814,183.06,183.01,12.9]
[1722033147947,45.0,183.07,183.02,12.9]
[1722033148331,45.0,183.08,183.02,12.9]
[1722033148522,45.0,183.08,183.01,12.9]
[1722033149542,26.79470814,183.11,183.01,12.9]
[1722033149726,26.79470814,183.11,183.03,12.9]
[1722033149925,39.69470814,183.11,183.04,12.9]
[1722033150518,20.0,183.11,183.07,12.9]
[1722033150729,16.4529,183.12,183.07,12.9]
[1722033152640,6.459,183.16,183.08,12.9]
[1722033152841,20.0,183.15,183.09,12.9]
[1722033153047,20.64960814,183.15,183.08,12.9]
[1722033153341,0.64960814,183.14,183.08,12.9]
[1722033153543,13.54960814,183.14,183.07,12.9]
[1722033153735,20.0,183.13,183.07,12.9]
[1722033156146,0.64960814,183.12,183.07,12.9]
[1722033156327,45.64960814,183.12,183.03,6.2079]
[1722033156528,15.478,183.2,183.11,12.9]
[1722033156843,34.48630814,183.2,183.13,12.9]
[1722033157046,33.8367,183.2,183.13,12.9]
[1722033157245,5.4588,183.19,183.07,1.09220664]
[1722033157433,18.3588,183.19,183.12,12.9]
[1722033157625,12.9,183.19,183.12,12.9]
[1722033157822,45.0,183.18,183.12,12.9]
[1722033158046,15.478,183.2,183.15,12.9]
[1722033158341,8.5675877,183.23,183.15,12.9]
[1722033158342,12.9,183.23,183.15,12.9]
[1722033158941,13.54960814,183.23,183.16,12.9]
[1722033159142,19.00720814,183.23,183.15,12.9]
[1722033159741,20.0,183.22,183.15,12.9]
[1722033160252,0.64960814,183.21,183.14,12.9]
[1722033160453,13.54960814,183.2,183.13,12.9]
[1722033160952,13.54960814,183.2,183.12,12.9]
[1722033161145,45.0,183.19,183.12,12.9]
[1722033161346,0.64960814,183.18,183.12,12.9]
[1722033162141,0.64960814,183.17,183.11,12.9]
[1722033162457,58.54960814,183.17,183.1,12.9]
[1722033163237,0.64960814,183.16,183.04,21.889]
[1722033163543,0.64960814,183.16,183.1,12.9]
[1722033164339,0.64960814,183.16,183.11,12.9]
[1722033165858,0.64960814,183.16,183.12,12.9]
[1722033167566,45.0,183.17,183.12,12.9]
[1722033167763,45.0,183.18,183.12,12.9]
[1722033168647,0.64960814,183.17,183.12,12.9]
[1722033169638,45.0,183.18,183.14,12.9]
[1722033169841,20.0,183.22,183.15,12.9]
[1722033170047,19.0898,183.26,183.19,12.9]
[1722033170370,19.73940814,183.26,183.19,12.9]
[1722033171438,5.4577,183.23,183.08,15.6227]
[1722033171645,12.9,183.21,183.08,15.6227]
[1722033171952,58.54960814,183.2,183.13,12.9]
[1722033172145,13.54960814,183.2,183.13,12.9]
[1722033172345,45.0,183.19,183.13,12.9]
[1722033172540,0.64960814,183.18,183.13,12.9]
[1722033177162,12.9,183.23,183.15,12.9]
[1722033177350,12.9,183.23,183.08,16.7147164]
[1722033177351,65.0,183.22,183.16,12.9]
[1722033177549,65.0,183.22,183.17,12.9]
[1722033178852,45.0,183.22,183.17,12.9]
[1722033179054,45.0,183.23,183.17,12.9]
[1722033179553,0.64960814,183.22,183.17,12.9]
[1722033180639,45.0,183.23,183.17,12.9]
[1722033180848,45.0,183.23,183.18,12.9]
[1722033181041,0.64960814,183.23,183.18,12.9]
[1722033181340,45.64960814,183.24,183.18,12.9]
[1722033181544,0.64960814,183.23,183.18,12.9]
[1722033182472,0.64960814,183.23,183.17,12.9]
[1722033184657,12.9,183.22,183.14,12.9]
[1722033184856,45.0,183.21,183.14,12.9]
[1722033185569,45.0,183.21,183.15,12.9]
[1722033186077,45.0,183.21,183.08,16.71462706]
[1722033186376,45.0,183.21,183.15,12.9]
[1722033186954,45.0,183.21,183.08,16.71462706]
[1722033187161,0.64960814,183.2,183.14,12.9]
[1722033187358,13.54960814,183.2,183.08,15.6227]
[1722033187561,45.0,183.19,183.13,12.9]
[1722033194078,0.64960814,183.18,183.14,12.9]
[1722033194279,45.0,183.19,183.14,12.9]
[1722033194757,0.64960814,183.18,183.14,12.9]
[1722033196585,0.64960814,183.17,183.08,15.6227]
[1722033196756,0.64960814,183.17,183.11,12.9]
[1722033197664,13.54960814,183.17,183.09,12.9]
[1722033197871,45.0,183.16,183.09,12.9]
[1722033198069,0.64960814,183.15,183.09,12.9]
[1722033198267,0.64960814,183.14,183.08,12.9]
[1722033198668,13.54960814,183.14,183.04,16.6566]
[1722033198881,13.54960814,183.14,182.98,23.1108]
[1722033198882,15.6502,183.12,182.98,23.1108]
[1722033199059,0.64960814,183.11,183.04,12.9]
[1722033199257,0.64960814,183.1,183.04,12.9]
[1722033201280,0.64960814,183.1,182.98,25.3176327]
[1722033201491,0.64960814,183.1,183.03,12.9]
[1722033202406,13.54960814,183.1,183.02,12.9]
[1722033202691,45.0,183.09,183.02,12.9]
[1722033202899,0.64960814,183.08,183.02,12.9]
[1722033203405,45.0,183.09,183.03,12.9]
[1722033203712,45.64960814,183.1,183.03,12.9]
[1722033204003,58.54960814,183.1,183.03,12.9]
[1722033204380,45.64960814,183.1,183.03,12.9]
[1722033204791,45.0,183.1,183.05,12.9]
[1722033204995,0.64960814,183.09,183.05,12.9]
[1722033206002,0.64960814,183.1,183.05,12.9]
[1722033208505,45.0,183.11,183.05,12.9]
[1722033208706,0.64960814,183.1,183.04,12.9]
[1722033208900,15.6502,183.12,183.07,12.9]
[1722033209480,0.64960814,183.11,183.06,12.9]
[1722033209903,0.64960814,183.11,183.05,12.9]
[1722033210506,0.64960814,183.1,183.05,12.9]
[1722033210706,0.64960814,183.1,183.04,12.9]
[1722033212616,0.64960814,183.1,182.98,23.1108]
[1722033212796,0.64960814,183.1,183.04,12.9]
[1722033213485,0.64960814,183.1,183.05,12.9]
[1722033213925,0.64960814,183.1,183.06,12.9]
[1722033214619,12.9,183.16,183.09,12.9]
[1722033214784,20.64960814,183.15,183.09,12.9]
[1722033214992,0.64960814,183.14,183.08,12.9]
[1722033215432,0.64960814,183.14,183.07,12.9]
[1722033216319,45.64960814,183.14,183.07,12.9]
[1722033216520,20.0,183.13,183.07,12.9]
[1722033218211,45.0,183.12,183.06,12.9]
[1722033218413,0.64960814,183.11,183.06,12.9]
[1722033219306,0.64960814,183.1,183.06,12.9]
[1722033219725,45.0,183.12,183.06,12.9]
[1722033220098,45.0,183.12,182.98,23.1108]
[1722033220099,0.64960814,183.11,182.98,23.1108]
[1722033220300,57.9,183.12,182.98,23.1108]
[1722033220623,57.9,183.12,183.05,12.9]
[1722033220810,0.64960814,183.11,183.05,12.9]
[1722033221010,12.9,183.09,182.98,23.1108]
[1722033221231,45.64960814,183.08,183.02,12.9]
[1722033221411,0.64960814,183.07,183.02,12.9]
[1722033222100,0.64960814,183.07,182.98,23.1108]
[1722033222305,0.64960814,183.07,183.02,12.9]
[1722033223098,0.64960814,183.07,183.01,12.9]
[1722033223316,0.64960814,183.07,183.0,12.9]
[1722033223529,12.9,183.05,182.94,16.1584]
[1722033223697,45.64960814,183.04,182.98,12.9]
[1722033223900,45.64960814,183.04,182.97,12.9]
[1722033224107,45.64960814,183.04,182.98,12.9]
[1722033225223,0.64960814,183.04,182.94,16.1584]
[1722033225430,13.54960814,183.04,182.94,16.1584]
[1722033225603,57.9,183.03,182.96,12.9]